bitfinex/quotes_BTCUSD_20241208
["timestamp","ask_amount","ask_price","bid_price","bid_amount"]
[1733691367885,0.78559635,99981.0,99980.0,0.00100076]
[1733691368300,0.69035475,99981.0,99980.0,7.6e-07]
[1733691368508,0.70535475,99981.0,99980.0,0.00100076]
[1733691369457,0.70535475,99981.0,99980.0,7.6e-07]
[1733691372320,0.70516538,99981.0,99980.0,7.6e-07]
[1733691373222,0.65126139,99981.0,99980.0,0.00086496]
[1733691374616,0.60126139,99981.0,99980.0,0.00086496]
[1733691374859,0.45126139,99981.0,99980.0,0.00086496]
[1733691375731,0.44226139,99981.0,99980.0,0.00086496]
[1733691375937,0.43626139,99981.0,99980.0,0.0008642]
[1733691376186,0.45126139,99981.0,99980.0,0.0018642]
[1733691376396,0.60126139,99981.0,99980.0,0.0018642]
[1733691376605,0.59526139,99981.0,99980.0,0.0008642]
[1733691376850,0.59926139,99981.0,99980.0,0.0008642]
[1733691377271,0.69007673,99981.0,99980.0,0.0008642]
[1733691377480,0.74007673,99981.0,99980.0,0.0008642]
[1733691377703,0.74007673,99981.0,99980.0,0.0018642]
[1733691377704,0.74907673,99981.0,99980.0,0.0018642]
[1733691378850,0.74907673,99981.0,99980.0,2e-07]
[1733691379331,1.04913673,99981.0,99980.0,2e-07]
[1733691380924,1.04913673,99981.0,99960.0,0.0008646]
[1733691380925,0.36126788,99961.0,99960.0,0.0008646]
[1733691381144,0.83805739,99961.0,99960.0,0.00143819]
[1733691382418,0.84405739,99961.0,99960.0,0.00143819]
[1733691383251,0.84605739,99961.0,99960.0,0.00143819]
[1733691386153,0.8558175,99961.0,99960.0,0.00143819]
[1733691390171,0.87624805,99961.0,99960.0,0.00143819]
[1733691391016,0.8558175,99961.0,99960.0,0.00143819]
[1733691399826,0.95563284,99961.0,99960.0,0.00143819]
[1733691400039,0.8558175,99961.0,99960.0,0.00143819]
[1733691402581,0.8558175,99961.0,99960.0,1.9e-07]
[1733691402791,0.97531105,99961.0,99960.0,1.9e-07]
[1733691402996,0.88622013,99961.0,99960.0,1.9e-07]
[1733691403622,1.01385651,99961.0,99960.0,1.9e-07]
[1733691404022,1.02318859,99961.0,99960.0,1.9e-07]
[1733691404250,0.88922013,99961.0,99960.0,1.9e-07]
[1733691404764,0.88722013,99961.0,99960.0,1.9e-07]
[1733691405002,0.89022013,99961.0,99960.0,1.9e-07]
[1733691405208,1.02419867,99961.0,99960.0,1.9e-07]
[1733691405646,0.89022013,99961.0,99960.0,1.9e-07]
[1733691406880,0.99003547,99961.0,99960.0,1.9e-07]
[1733691407450,1.12405759,99961.0,99960.0,1.9e-07]
[1733691407648,1.02424225,99961.0,99960.0,1.9e-07]
[1733691408046,1.02424225,99961.0,99960.0,0.00086439]
[1733691408277,0.89022013,99961.0,99960.0,0.00086439]
[1733691409244,1.06894772,99961.0,99960.0,0.00086439]
[1733691409848,0.8598175,99961.0,99960.0,0.00086439]
[1733691410054,0.95963284,99961.0,99960.0,0.00086439]
[1733691410254,1.1687655,99961.0,99960.0,0.00086439]
[1733691410670,1.16886771,99961.0,99960.0,0.00086439]
[1733691411074,0.99003791,99961.0,99960.0,0.00086439]
[1733691411389,1.16889057,99961.0,99960.0,0.00086439]
[1733691411596,0.99003791,99961.0,99960.0,0.00086439]
[1733691411999,1.16889457,99961.0,99960.0,0.00086439]
[1733691412768,0.99003791,99961.0,99960.0,0.00086439]
[1733691413017,1.16889457,99961.0,99960.0,0.00086439]
[1733691413222,0.99003791,99961.0,99960.0,0.00086439]
[1733691414298,1.11381907,99961.0,99960.0,0.00086439]
[1733691414510,0.89022257,99961.0,99960.0,0.00086439]
[1733691416048,1.06911386,99961.0,99960.0,0.00086439]
[1733691416272,0.89022257,99961.0,99960.0,0.00086439]
[1733691419795,1.08478584,99961.0,99960.0,0.00086439]
[1733691420341,0.90588069,99961.0,99960.0,0.00086439]
[1733691420738,0.87468281,99961.0,99960.0,0.00086439]
[1733691420954,0.79798281,99961.0,99960.0,0.00086439]
[1733691421391,0.76757774,99961.0,99960.0,0.00086439]
[1733691422423,0.98809686,99961.0,99960.0,0.00086439]
[1733691422673,0.97909686,99961.0,99960.0,0.00086439]
[1733691422927,0.88959096,99961.0,99960.0,0.00086439]
[1733691423144,0.88659096,99961.0,99960.0,0.00086439]
[1733691423352,1.02892837,99961.0,99960.0,0.00086439]
[1733691423797,0.92503377,99961.0,99960.0,0.00086439]
[1733691424002,0.82821843,99961.0,99960.0,0.00086439]
[1733691424423,0.82521843,99961.0,99960.0,0.00086439]
[1733691424630,0.97691573,99961.0,99960.0,0.00086439]
[1733691424836,0.98491573,99961.0,99960.0,0.00086439]
[1733691425046,0.82021785,99961.0,99960.0,0.00086439]
[1733691425236,0.78677562,99961.0,99960.0,0.00086439]
[1733691425478,0.94373636,99961.0,99960.0,0.00086439]
[1733691425689,0.75557774,99961.0,99960.0,0.00086439]
[1733691425896,0.76457774,99961.0,99960.0,0.00086439]
[1733691426486,0.76857774,99961.0,99960.0,0.00086439]
[1733691426684,0.74315951,99961.0,99960.0,0.00086439]
[1733691426888,0.73915951,99961.0,99960.0,0.00086439]
[1733691427064,0.74415951,99961.0,99960.0,0.00186439]
[1733691427704,0.73015951,99961.0,99960.0,0.00086439]
[1733691427905,0.73915951,99961.0,99960.0,0.00086439]
[1733691429377,0.73615951,99961.0,99960.0,0.00086439]
[1733691429599,0.73815951,99961.0,99960.0,0.00086439]
[1733691432506,0.55808951,99961.0,99960.0,0.00086439]
[1733691437797,0.58928739,99961.0,99960.0,0.00086439]
[1733691438255,0.67867233,99961.0,99960.0,0.00086439]
[1733691438488,0.75717283,99961.0,99960.0,0.00086439]
[1733691438771,0.89888261,99961.0,99960.0,3.9e-07]
[1733691438996,0.94368102,99961.0,99960.0,3.9e-07]
[1733691439189,0.76448739,99961.0,99960.0,3.9e-07]
[1733691439401,1.11866347,99961.0,99960.0,3.9e-07]
[1733691439622,0.28978588,99951.0,99950.0,0.0017306]
[1733691439842,0.53981539,99951.0,99950.0,0.0017306]
[1733691440053,0.83987539,99951.0,99950.0,0.0017306]
[1733691440276,0.9739386,99951.0,99950.0,0.0017306]
[1733691440908,1.07375394,99951.0,99950.0,0.0017306]
[1733691441376,1.07375394,99951.0,99950.0,6e-07]
[1733691441377,1.17043126,99951.0,99950.0,6e-07]
[1733691441607,1.12427087,99951.0,99950.0,6e-07]
[1733691441829,0.94557539,99951.0,99950.0,6e-07]
[1733691442684,1.12424699,99951.0,99950.0,6e-07]
[1733691442892,1.13829701,99951.0,99950.0,6e-07]
[1733691443511,1.13429701,99951.0,99950.0,6e-07]
[1733691443719,0.95562541,99951.0,99950.0,6e-07]
[1733691443927,0.95362541,99951.0,99950.0,0.0010006]
[1733691444157,0.91262541,99951.0,99950.0,0.0010006]
[1733691444366,1.00283713,99951.0,99950.0,6e-07]
[1733691444794,0.90562541,99951.0,99950.0,6e-07]
[1733691445819,1.03954153,99951.0,99950.0,6e-07]
[1733691446232,1.04654153,99951.0,99950.0,0.0010006]
[1733691446682,0.75622753,99951.0,99950.0,0.0010006]
[1733691446890,0.60622753,99951.0,99950.0,0.0010006]
[1733691447564,0.59617751,99951.0,99950.0,0.0010006]
[1733691447819,0.58917751,99951.0,99950.0,6e-07]
[1733691448046,0.58017751,99951.0,99950.0,0.0010006]
[1733691448308,0.59417751,99951.0,99950.0,0.0010006]
[1733691448924,0.73517751,99951.0,99950.0,0.0010006]
[1733691449101,0.73517751,99951.0,99950.0,6e-07]
[1733691449313,0.73017751,99951.0,99950.0,6e-07]
[1733691449859,0.73317751,99951.0,99950.0,6e-07]
[1733691450290,0.74217751,99951.0,99950.0,6e-07]
[1733691450467,0.73017751,99951.0,99950.0,6e-07]
[1733691450673,0.73317751,99951.0,99950.0,6e-07]
[1733691450880,0.74217751,99951.0,99950.0,6e-07]
[1733691454018,0.81937751,99951.0,99950.0,6e-07]
[1733691454606,0.85057539,99951.0,99950.0,6e-07]
[1733691458736,0.74217751,99951.0,99950.0,6e-07]
[1733691462385,0.59217751,99951.0,99950.0,6e-07]
[1733691462582,0.41208951,99951.0,99950.0,6e-07]
[1733691463872,0.56208951,99951.0,99950.0,6e-07]
[1733691471876,0.55908951,99951.0,99950.0,6e-07]
[1733691472091,0.55008951,99951.0,99950.0,6e-07]
[1733691472441,0.55308951,99951.0,99950.0,6e-07]
[1733691475625,0.59745238,99951.0,99950.0,6e-07]
[1733691476041,0.55308951,99951.0,99950.0,6e-07]
[1733691476660,0.55008951,99951.0,99950.0,6e-07]
[1733691477073,0.56108951,99951.0,99950.0,6e-07]
[1733691477252,0.57084852,99951.0,99950.0,6e-07]
[1733691477463,0.56784852,99951.0,99950.0,6e-07]
[1733691477841,0.57084852,99951.0,99950.0,6e-07]
[1733691482495,0.67066386,99951.0,99950.0,6e-07]
[1733691485761,0.57084852,99951.0,99950.0,6e-07]
[1733691513211,0.64844852,99951.0,99950.0,6e-07]
[1733691513427,0.69454852,99951.0,99950.0,6e-07]
[1733691513706,0.78404278,99951.0,99950.0,6e-07]
[1733691513924,0.82878991,99951.0,99950.0,6e-07]
[1733691514433,0.79436386,99951.0,99950.0,6e-07]
[1733691514635,0.69454852,99951.0,99950.0,6e-07]
[1733691517334,0.8288586,99951.0,99950.0,6e-07]
[1733691517478,0.71487763,99951.0,99950.0,6e-07]
[1733691518513,0.89386615,99951.0,99950.0,6e-07]
[1733691518716,0.99368149,99951.0,99950.0,6e-07]
[1733691518914,1.0696265,99951.0,99950.0,6e-07]
[1733691519203,0.87632229,99951.0,99950.0,6e-07]
[1733691521539,0.92632229,99951.0,99950.0,6e-07]
[1733691521786,0.87632229,99951.0,99950.0,6e-07]
[1733691525415,0.86832229,99951.0,99950.0,6e-07]
[1733691525622,0.87432229,99951.0,99950.0,6e-07]
[1733691525836,0.87732229,99951.0,99950.0,6e-07]
[1733691529331,1.07038351,99951.0,99950.0,6e-07]
[1733691529860,0.84689085,99951.0,99950.0,6e-07]
[1733691530002,1.07038244,99951.0,99950.0,6e-07]
[1733691531110,1.07038244,99951.0,99940.0,0.0009246]
[1733691531111,0.409506,99941.0,99940.0,0.0009246]
[1733691531328,0.80959551,99941.0,99940.0,0.0009246]
[1733691532182,0.81559551,99941.0,99940.0,0.0009246]
[1733691532809,0.81459551,99941.0,99940.0,0.0009246]
[1733691533250,0.81859551,99941.0,99940.0,0.0009246]
[1733691533965,0.91841085,99941.0,99940.0,0.0009246]
[1733691534434,0.90941085,99941.0,99940.0,0.0009246]
[1733691534861,0.92241085,99941.0,99940.0,0.0009246]
[1733691539311,0.93232883,99941.0,99940.0,0.0009246]
[1733691540883,0.96352671,99941.0,99940.0,6e-07]
[1733691544792,0.8667532,99941.0,99940.0,6e-07]
[1733691551059,0.89720244,99941.0,99940.0,6e-07]
[1733691553552,0.98656608,99941.0,99940.0,6e-07]
[1733691553981,0.89720244,99941.0,99940.0,6e-07]
[1733691554187,0.98656608,99941.0,99940.0,6e-07]
[1733691555194,0.99701778,99941.0,99940.0,6e-07]
[1733691555839,0.89720244,99941.0,99940.0,6e-07]
[1733691556175,1.0312479,99941.0,99940.0,6e-07]
[1733691556800,0.89720244,99941.0,99940.0,6e-07]
[1733691558282,1.07623434,99941.0,99940.0,6e-07]
[1733691559130,0.89720244,99941.0,99940.0,6e-07]
[1733691559542,0.91286339,99941.0,99940.0,6e-07]
[1733691560170,1.13665327,99941.0,99940.0,6e-07]
[1733691562307,0.91286339,99941.0,99940.0,6e-07]
[1733691567496,0.96092911,99941.0,99940.0,6e-07]
[1733691567718,0.91286339,99941.0,99940.0,6e-07]
[1733691580144,0.95956339,99941.0,99940.0,6e-07]
[1733691581408,1.22855076,99941.0,99940.0,6e-07]
[1733691582102,0.95956339,99941.0,99940.0,6e-07]
[1733691583067,1.22853475,99941.0,99940.0,6e-07]
[1733691583268,1.22852234,99941.0,99940.0,6e-07]
[1733691583474,0.95956339,99941.0,99940.0,6e-07]
[1733691583897,1.22852413,99941.0,99940.0,6e-07]
[1733691584102,1.22852719,99941.0,99940.0,6e-07]
[1733691584713,0.95956339,99941.0,99940.0,6e-07]
[1733691584919,1.22850624,99941.0,99940.0,6e-07]
[1733691585737,0.95956339,99941.0,99940.0,6e-07]
[1733691585912,1.22856961,99941.0,99940.0,6e-07]
[1733691586058,1.32838495,99941.0,99940.0,6e-07]
[1733691586256,1.22856961,99941.0,99940.0,6e-07]
[1733691586459,1.22856725,99941.0,99940.0,6e-07]
[1733691586998,0.330135,99925.0,99924.0,0.0149461]
[1733691587262,0.51983302,99925.0,99924.0,0.0149461]
[1733691587794,0.43016451,99925.0,99924.0,0.0149461]
[1733691588202,0.51982669,99925.0,99924.0,0.01511812]
[1733691588624,0.52482669,99925.0,99924.0,0.01511812]
[1733691588841,0.43516451,99925.0,99924.0,0.01511812]
[1733691589046,0.52582669,99925.0,99924.0,0.01511812]
[1733691589244,0.43616451,99925.0,99924.0,0.01511812]
[1733691589897,0.43116451,99925.0,99924.0,0.01511812]
[1733691590098,0.43016451,99925.0,99924.0,0.01511812]
[1733691590422,0.43916451,99925.0,99924.0,0.01511812]
[1733691591470,0.43216451,99925.0,99924.0,0.01511812]
[1733691591675,0.43016451,99925.0,99924.0,0.01511812]
[1733691592094,0.44216451,99925.0,99924.0,0.01511812]
[1733691593756,0.45191446,99925.0,99924.0,0.01511812]
[1733691601433,0.75197446,99925.0,99924.0,0.01511812]
[1733691601827,0.88647857,99925.0,99924.0,0.01511812]
[1733691601971,0.75197446,99925.0,99924.0,0.01511812]
[1733691603654,0.84161441,99925.0,99924.0,0.01511812]
[1733691603904,0.75197446,99925.0,99924.0,0.01511812]
[1733691604299,0.84160899,99925.0,99924.0,0.01511812]
[1733691604919,0.8517898,99925.0,99924.0,0.01511812]
[1733691605175,0.94141863,99925.0,99924.0,0.01511812]
[1733691605347,0.84160329,99925.0,99924.0,0.01511812]
[1733691605570,0.75197446,99925.0,99924.0,0.01511812]
[1733691606401,0.84159997,99925.0,99924.0,0.01511812]
[1733691606668,0.75197446,99925.0,99924.0,0.01511812]
[1733691607104,0.74222451,99925.0,99924.0,0.01511812]
[1733691608069,0.73922451,99925.0,99924.0,0.01511812]
[1733691608634,0.73222451,99925.0,99924.0,0.01511812]
[1733691608857,0.74022451,99925.0,99924.0,0.01511812]
[1733691618041,0.73822451,99925.0,99924.0,0.01511812]
[1733691618249,0.73022451,99925.0,99924.0,0.01511812]
[1733691618701,0.73822451,99925.0,99924.0,0.01511812]
[1733691618910,0.73222451,99925.0,99924.0,0.01511812]
[1733691620217,0.73622451,99925.0,99924.0,0.01511812]
[1733691620453,0.73122451,99925.0,99924.0,0.01511812]
[1733691620881,0.73722451,99925.0,99924.0,0.01511812]
[1733691621297,0.74322451,99925.0,99924.0,0.01511812]
[1733691656569,0.74267075,99925.0,99924.0,0.01511812]
[1733691666731,0.41308951,99925.0,99924.0,0.01511812]
[1733691667820,0.41208951,99925.0,99924.0,0.09561812]
[1733691668248,0.40008951,99925.0,99924.0,0.01511812]
[1733691668496,0.40008951,99925.0,99924.0,0.03392024]
[1733691668695,0.40408951,99925.0,99924.0,0.03392024]
[1733691669004,0.40408951,99925.0,99924.0,0.03492024]
[1733691683572,0.30406,99925.0,99924.0,0.21505624]
[1733691683819,0.30406,99925.0,99924.0,0.03492024]
[1733691685199,0.30406,99925.0,99924.0,0.21505624]
[1733691685647,0.30406,99925.0,99924.0,0.03492024]
[1733691689852,0.30406,99925.0,99924.0,0.20832024]
[1733691690057,0.004,99925.0,99924.0,0.28132024]
[1733691690265,0.004,99925.0,99924.0,0.71320472]
[1733691690473,0.0017286,99930.0,99929.0,0.06880212]
[1733691690673,0.0017286,99930.0,99929.0,0.55265746]
[1733691690887,0.0017286,99930.0,99929.0,0.55165709]
[1733691691309,0.0017286,99930.0,99929.0,0.65695709]
[1733691692663,0.0027286,99930.0,99929.0,0.66295709]
[1733691692874,0.0037286,99930.0,99929.0,0.66695709]
[1733691695475,0.0037286,99930.0,99929.0,0.89118873]
[1733691695696,0.0037286,99930.0,99929.0,0.66695709]
[1733691695908,0.0037286,99930.0,99929.0,0.89118873]
[1733691696578,0.0037286,99930.0,99929.0,0.66695709]
[1733691697596,0.0037286,99930.0,99929.0,0.84627442]
[1733691697848,6e-07,99930.0,99929.0,1.14410393]
[1733691698070,0.001729,99960.0,99949.0,0.40099312]
[1733691698273,0.001729,99960.0,99949.0,0.60632263]
[1733691698482,0.001729,99960.0,99949.0,0.74072089]
[1733691698689,0.001729,99960.0,99949.0,1.07146377]
[1733691698901,0.001729,99960.0,99949.0,0.93706551]
[1733691699328,0.001729,99960.0,99949.0,0.94106551]
[1733691699570,0.001729,99960.0,99949.0,0.74465969]
[1733691699781,0.001729,99960.0,99949.0,0.74065969]
[1733691699982,0.0027284,99950.0,99949.0,0.76634675]
[1733691700650,0.0027284,99950.0,99949.0,0.52670969]
[1733691701079,0.0027284,99950.0,99949.0,0.54145461]
[1733691701512,0.0027284,99950.0,99949.0,0.63095205]
[1733691702590,0.0027284,99950.0,99949.0,0.54145461]
[1733691702814,0.0027284,99950.0,99949.0,0.63095254]
[1733691703307,0.0009868,99978.0,99969.0,0.27185712]
[1733691703739,0.0794,99993.0,99969.0,0.32185712]
[1733691703964,0.0803919,99993.0,99969.0,0.50468663]
[1733691704628,0.00178615,99970.0,99969.0,0.50468663]
[1733691705072,0.00178615,99970.0,99969.0,0.54034524]
[1733691705518,0.0803919,99993.0,99979.0,0.24883912]
[1733691705737,0.00230195,99980.0,99979.0,0.27183912]
[1733691707906,0.00230195,99980.0,99979.0,0.27383912]
[1733691708355,0.00230195,99980.0,99979.0,0.27683912]
[1733691710075,0.00190461,99980.0,99979.0,0.27683912]
[1733691712499,0.00190461,99980.0,99979.0,0.02380212]
[1733691712500,0.07990461,99980.0,99979.0,0.02380212]
[1733691713668,0.25994061,99980.0,99979.0,0.02380212]
[1733691713867,0.25994061,99980.0,99979.0,0.02180212]
[1733691714688,0.25994061,99980.0,99979.0,0.02080212]
[1733691714888,0.28197012,99980.0,99963.0,0.01880212]
[1733691715111,0.28197012,99980.0,99935.0,0.08932117]
[1733691715112,0.078,99972.0,99966.0,0.01880212]
[1733691715326,0.078,99972.0,99936.0,0.05]
[1733691715327,0.180068,99962.0,99961.0,0.01880212]
[1733691715538,0.048,99961.0,99957.0,0.01880212]
[1733691715764,0.180076,99958.0,99957.0,0.01880212]
[1733691715971,0.35810551,99958.0,99957.0,0.01880212]
[1733691716169,0.180109,99940.0,99939.0,0.01880212]
[1733691716373,0.35813851,99940.0,99939.0,0.01880212]
[1733691716791,0.40613851,99940.0,99939.0,0.01880212]
[1733691717432,0.40613851,99940.0,99939.0,0.01897414]
[1733691717858,0.40613851,99940.0,99939.0,0.00017202]
[1733691718067,0.41113851,99940.0,99939.0,0.01897414]
[1733691718509,0.41213851,99940.0,99939.0,0.01897414]
[1733691718919,0.41213851,99940.0,99939.0,0.00017202]
[1733691719142,0.41213851,99940.0,99939.0,0.01897414]
[1733691720312,0.23202951,99940.0,99939.0,0.01897414]
[1733691720980,0.132,99940.0,99939.0,0.01897414]
[1733691721195,0.084,99940.0,99939.0,0.01897414]
[1733691723131,0.006,99940.0,99939.0,0.01897414]
[1733691723771,0.006,99940.0,99939.0,0.01997458]
[1733691723983,0.005,99940.0,99939.0,0.01997458]
[1733691724400,0.006,99940.0,99939.0,0.01997458]
[1733691724612,0.001,99940.0,99939.0,0.01997458]
[1733691724825,0.078,99948.0,99939.0,0.01997458]
[1733691725115,0.078,99948.0,99939.0,0.02097458]
[1733691725505,0.001,99940.0,99939.0,0.20108358]
[1733691725804,0.078,99948.0,99944.0,0.1801]
[1733691726031,0.083,99948.0,99944.0,0.1801]
[1733691726246,0.083,99948.0,99947.0,0.01880212]
[1733691726458,0.078,99948.0,99947.0,0.01880212]
[1733691728847,0.083,99948.0,99947.0,0.01880212]
[1733691730099,0.078,99948.0,99947.0,0.01880212]
[1733691730532,0.005,99948.0,99947.0,0.01880212]
[1733691730738,0.005,99948.0,99947.0,0.01980253]
[1733691731613,0.005,99948.0,99947.0,0.02080253]
[1733691731817,0.0768,99955.0,99948.0,0.180093]
[1733691732431,0.0768,99955.0,99949.0,0.180091]
[1733691733261,0.0798,99955.0,99949.0,0.180091]
[1733691733468,0.0768,99955.0,99954.0,0.01880212]
[1733691734704,0.0798,99955.0,99954.0,0.01880212]
[1733691735111,0.0768,99955.0,99954.0,0.01880212]
[1733691735484,0.0798,99955.0,99954.0,0.01880212]
[1733691748213,0.003,99955.0,99954.0,0.0428025]
[1733691749320,0.0828,99970.0,99966.0,0.18006]
[1733691749982,0.0828,99970.0,99966.0,0.36012]
[1733691751350,0.0828,99970.0,99969.0,0.01880212]
[1733691751581,0.0848,99970.0,99969.0,0.01880212]
[1733691752286,0.0828,99970.0,99969.0,0.01880212]
[1733691752502,0.0005732,99970.0,99969.0,0.01880212]
[1733691752721,0.0005732,99970.0,99969.0,0.01980212]
[1733691752722,0.0025732,99970.0,99969.0,0.01980212]
[1733691764834,0.0025732,99970.0,99969.0,0.02080228]
[1733691768521,0.23430271,99970.0,99969.0,0.01980212]
[1733691768728,0.38430271,99970.0,99969.0,0.001]
[1733691769580,0.38230271,99970.0,99969.0,0.001]
[1733691769791,0.51011,99969.0,99963.0,0.01880212]
[1733691770008,0.10002951,99968.0,99963.0,0.01880212]
[1733691770222,0.180064,99964.0,99963.0,0.01880212]
[1733691770453,0.28009351,99964.0,99963.0,0.01880212]
[1733691771816,0.28109351,99964.0,99963.0,0.01880212]
[1733691772460,0.28609351,99964.0,99963.0,0.01880212]
[1733691788708,0.10602951,99964.0,99963.0,0.01880212]
[1733691788925,0.006,99964.0,99963.0,0.01880212]
[1733691789783,0.005,99964.0,99963.0,0.01880212]
[1733691790859,0.0826,99967.0,99963.0,0.01880212]
[1733691791489,0.004,99964.0,99963.0,0.01880212]
[1733691791705,0.004,99964.0,99963.0,0.01980241]
[1733691791947,0.0005732,99970.0,99969.0,0.01880212]
[1733691792164,0.0005732,99970.0,99969.0,0.19885712]
[1733691795230,0.0005732,99970.0,99969.0,0.20085712]
[1733691796090,0.0775732,99970.0,99969.0,0.02080212]
[1733691796299,0.0775732,99970.0,99969.0,0.002]
[1733691796300,0.22320271,99970.0,99969.0,0.002]
[1733691798505,0.37320271,99970.0,99969.0,0.002]
[1733691842711,0.46308031,99970.0,99969.0,0.002]
[1733691843180,0.37320271,99970.0,99969.0,0.002]
[1733691845281,0.46311096,99970.0,99969.0,0.002]
[1733691846180,0.37320271,99970.0,99969.0,0.002]
[1733691854367,0.37320271,99970.0,99964.0,0.01880212]
[1733691854368,0.15,99969.0,99964.0,0.01880212]
[1733691854585,0.330063,99965.0,99964.0,0.01880212]
[1733691854791,0.43009251,99965.0,99964.0,0.01880212]
[1733691856421,0.43209251,99965.0,99964.0,0.01880212]
[1733691864829,0.002,99965.0,99964.0,0.01880212]
[1733691865054,0.002,99965.0,99964.0,0.32106612]
[1733691865935,0.0005732,99970.0,99969.0,0.19885712]
[1733691866165,0.0005732,99970.0,99969.0,0.53087244]
[1733691866586,0.0005732,99970.0,99969.0,0.53074408]
[1733691867046,0.0005732,99970.0,99969.0,0.66560637]
[1733691867265,0.0005732,99970.0,99969.0,0.53074408]
[1733691867491,0.0005732,99970.0,99969.0,0.19885712]
[1733691868169,0.0005732,99970.0,99969.0,0.19985712]
[1733691868592,0.0005732,99970.0,99969.0,0.29171886]
[1733691869014,0.0005732,99970.0,99969.0,0.20185712]
[1733691886698,0.00090395,99980.0,99969.0,0.20185712]
[1733691886896,0.00090395,99980.0,99973.0,0.180047]
[1733691888199,0.00390395,99980.0,99973.0,0.180047]
[1733691892288,0.00390395,99980.0,99973.0,0.180047]
[1733691895642,0.00390395,99980.0,99973.0,0.360095]
[1733691900570,0.00390395,99980.0,99976.0,0.180041]
[1733691901652,0.00090395,99980.0,99976.0,0.180041]
[1733691901866,0.00390395,99980.0,99976.0,0.180041]
[1733691902503,0.00390395,99980.0,99977.0,0.180041]
[1733691902937,0.00390395,99980.0,99979.0,0.01880212]
[1733691904035,0.00090395,99980.0,99979.0,0.01880212]
[1733691904184,0.00290395,99980.0,99979.0,0.01880212]
[1733691904542,0.00290395,99980.0,99979.0,0.01980212]
[1733691905173,0.00090395,99980.0,99979.0,0.01980212]
[1733691908422,0.00090395,99980.0,99979.0,0.10960902]
[1733691909482,0.00090395,99980.0,99979.0,0.01980212]
[1733691909483,0.07810395,99980.0,99979.0,0.01980212]
[1733691909735,0.07810395,99980.0,99979.0,0.001]
[1733691909736,0.37483346,99980.0,99979.0,0.001]
[1733691910713,0.25725,99972.0,99971.0,0.01880212]
[1733691910967,0.35727951,99972.0,99971.0,0.01880212]
[1733691912226,0.35927951,99972.0,99971.0,0.01880212]
[1733691912456,0.35727951,99972.0,99971.0,0.01880212]
[1733691913127,0.35827951,99972.0,99971.0,0.01880212]
[1733691913631,0.35727951,99972.0,99971.0,0.01880212]
[1733691913903,0.36327951,99972.0,99971.0,0.01880212]
[1733691914134,0.35927951,99972.0,99971.0,0.01880212]
[1733691914801,0.36627951,99972.0,99971.0,0.01980212]
[1733691915564,0.36427951,99972.0,99971.0,0.01980212]
[1733691915836,0.36627951,99972.0,99971.0,0.01980212]
[1733691917818,0.18622951,99972.0,99971.0,0.01980212]
[1733691922622,0.18622951,99972.0,99971.0,0.001]
[1733691922623,0.29269152,99972.0,99971.0,0.001]
[1733691923045,0.23292951,99972.0,99971.0,0.001]
[1733691923497,0.180052,99971.0,99950.0,0.0008636]
[1733691923707,0.58340143,99971.0,99950.0,0.0008636]
[1733691923991,0.40398151,99971.0,99950.0,0.0008636]
[1733691924198,0.50379685,99971.0,99950.0,0.0008636]
[1733691924422,0.72807176,99971.0,99950.0,0.0008636]
[1733691924637,0.68298498,99971.0,99950.0,0.0008636]
[1733691925080,0.03119788,99969.0,99950.0,0.0008636]
[1733691925295,0.03119788,99969.0,99960.0,6e-07]
[1733691925296,0.51449124,99961.0,99960.0,6e-07]
[1733691926144,0.42489951,99961.0,99960.0,6e-07]
[1733691926357,0.51443692,99961.0,99960.0,6e-07]
[1733691926566,0.42489951,99961.0,99960.0,6e-07]
[1733691926791,0.42789951,99961.0,99960.0,6e-07]
[1733691927000,0.42789951,99961.0,99960.0,0.0010006]
[1733691927001,0.43689951,99961.0,99960.0,0.0010006]
[1733691931627,0.41389951,99961.0,99960.0,0.0010006]
[1733691934140,0.49130176,99961.0,99960.0,0.0010006]
[1733691942931,0.79142176,99961.0,99960.0,0.0010006]
[1733691946065,0.71401951,99961.0,99960.0,0.0010006]
[1733691951413,0.86401951,99961.0,99960.0,0.0010006]
[1733691956397,0.88701951,99961.0,99960.0,0.0010006]
[1733691957407,0.9175419,99961.0,99960.0,0.0010006]
[1733691957620,0.88701951,99961.0,99960.0,0.0010006]
[1733691958542,0.91753691,99961.0,99960.0,0.0010006]
[1733691958972,1.01735225,99961.0,99960.0,0.0010006]
[1733691959173,1.03301036,99961.0,99960.0,0.0010006]
[1733691960571,0.75787762,99961.0,99960.0,0.0010006]
[1733691960781,0.59221951,99961.0,99960.0,0.0010006]
[1733691962496,0.74221951,99961.0,99960.0,0.0010006]
[1733691974465,0.84211951,99961.0,99960.0,0.0010006]
[1733691976804,0.97655756,99961.0,99960.0,0.0010006]
[1733691977410,0.97608991,99961.0,99960.0,0.0010006]
[1733691977606,1.23135122,99961.0,99960.0,0.0010006]
[1733691977824,1.23135122,99961.0,99960.0,6e-07]
[1733691977825,1.00728779,99961.0,99960.0,6e-07]
[1733691978358,1.03774791,99961.0,99960.0,6e-07]
[1733691979160,0.95347751,99961.0,99960.0,6e-07]
[1733691979356,1.00347751,99961.0,99960.0,6e-07]
[1733691980066,1.27235362,99961.0,99960.0,6e-07]
[1733691980450,1.00347751,99961.0,99960.0,6e-07]
[1733691980851,0.95347751,99961.0,99960.0,6e-07]
[1733691981167,1.10329285,99961.0,99960.0,6e-07]
[1733691982898,1.00347751,99961.0,99960.0,6e-07]
[1733691987215,0.03119788,99957.0,99950.0,0.0008636]
[1733691987437,0.66772684,99951.0,99950.0,0.0008636]
[1733691987589,0.53341751,99951.0,99950.0,0.0008636]
[1733691987788,0.83353751,99951.0,99950.0,0.0008636]
[1733691989124,0.97684684,99951.0,99950.0,0.0018636]
[1733691989511,0.84253751,99951.0,99950.0,0.0018636]
[1733691990321,0.84753751,99951.0,99950.0,0.0018636]
[1733691990937,0.85753954,99951.0,99950.0,0.0018636]
[1733691991263,0.94709909,99951.0,99950.0,0.0018636]
[1733691993607,0.85753954,99951.0,99950.0,0.0018636]
[1733691996037,0.94709909,99951.0,99950.0,0.0018636]
[1733691996238,0.85753954,99951.0,99950.0,0.0018636]
[1733691998419,0.94709909,99951.0,99950.0,0.0018636]
[1733691998620,0.85753954,99951.0,99950.0,0.0018636]
[1733691998847,0.94709909,99951.0,99950.0,0.0018636]
[1733691999026,0.85753954,99951.0,99950.0,0.0018636]
[1733691999221,0.94707967,99951.0,99950.0,0.0018636]
[1733691999874,0.95735488,99951.0,99950.0,6e-07]
[1733692000075,1.26170309,99951.0,99950.0,6e-07]
[1733692000299,1.26170309,99951.0,99950.0,7e-07]
[1733692000300,1.06828279,99951.0,99950.0,7e-07]
[1733692000514,1.11828279,99951.0,99950.0,7e-07]
[1733692004657,1.01846745,99951.0,99950.0,7e-07]